[Event "*** Titled Tuesday Blitz"]
[Site "Chess.com"]
[Date "2019.10.01"]
[Round "3"]
[White "PNEPaul"]
[Black "benhal"]
[Result "0-1"]
[WhiteElo "1868"]
[BlackElo "2308"]
[TimeControl "180+2"]
[EndTime "13:34:27 PDT"]
[Termination "benhal won by resignation"]

1. e4 {[%clk 0:03:01.9]} 1... c5 {[%clk 0:02:59.4]} 2. d4 {[%clk 0:03:02.1]}
2... cxd4 {[%clk 0:02:59.6]} 3. c3 {[%clk 0:03:03.3]} 3... Nf6 {[%clk
0:03:01.1]} 4. e5 {[%clk 0:03:02]} 4... Nd5 {[%clk 0:03:01.7]} 5. Nf3 {[%clk
0:03:03.1]} 5... e6 {[%clk 0:02:57.9]} 6. Bd3 {[%clk 0:03:02]} 6... dxc3 {[%clk
0:02:58.1]} 7. bxc3 {[%clk 0:03:02.1]} 7... d6 {[%clk 0:02:58.9]} 8. exd6 {[%clk
0:03:00.2]} 8... Bxd6 {[%clk 0:02:59.1]} 9. O-O {[%clk 0:03:00.2]} 9... Nc6
{[%clk 0:02:57]} 10. Qe2 {[%clk 0:02:59.8]} 10... Nf6 {[%clk 0:02:54.3]} 11. Bg5
{[%clk 0:02:58.6]} 11... h6 {[%clk 0:02:54.6]} 12. Bh4 {[%clk 0:02:59.5]} 12...
O-O {[%clk 0:02:53.5]} 13. Nbd2 {[%clk 0:02:57.1]} 13... Be7 {[%clk 0:02:54.3]}
14. Rad1 {[%clk 0:02:52.8]} 14... Qa5 {[%clk 0:02:52.3]} 15. Bxf6 {[%clk
0:02:44.8]} 15... Bxf6 {[%clk 0:02:52.1]} 16. Ne4 {[%clk 0:02:43.5]} 16... Be7
{[%clk 0:02:51.2]} 17. Bb1 {[%clk 0:02:36.1]} 17... f5 {[%clk 0:02:45.3]} 18.
Ng3 {[%clk 0:02:20]} 18... Qxc3 {[%clk 0:02:45.2]} 19. Nh5 {[%clk 0:02:14.6]}
19... e5 {[%clk 0:02:39]} 20. Rc1 {[%clk 0:02:10.7]} 20... Qa5 {[%clk
0:02:38.5]} 21. Qc4+ {[%clk 0:01:56]} 21... Kh8 {[%clk 0:02:35.7]} 22. Rfd1
{[%clk 0:01:43.7]} 22... e4 {[%clk 0:02:30.9]} 23. Nd4 {[%clk 0:01:40.4]} 23...
Ne5 {[%clk 0:02:24.2]} 24. Qb3 {[%clk 0:01:32]} 24... Bg5 {[%clk 0:02:07.8]} 25.
Ne6 {[%clk 0:01:27.2]} 25... Bxe6 {[%clk 0:02:07.6]} 26. Qxe6 {[%clk 0:01:26.5]}
26... Bxc1 {[%clk 0:02:08.8]} 27. Rxc1 {[%clk 0:01:18.1]} 27... Rad8 {[%clk
0:02:04.9]} 28. Nf4 {[%clk 0:01:05]} 28... Qd2 {[%clk 0:01:53.2]} 0-1

[Event "*** Titled Tuesday Blitz"]
[Site "Chess.com"]
[Date "2019.10.01"]
[Round "3"]
[White "dmosesov"]
[Black "fidetrainerNET"]
[Result "1-0"]
[WhiteElo "2558"]
[BlackElo "2266"]
[TimeControl "180+2"]
[EndTime "13:34:28 PDT"]
[Termination "dmosesov won by resignation"]

1. d4 {[%clk 0:03:01.9]} 1... c5 {[%clk 0:02:58.7]} 2. d5 {[%clk 0:03:00.2]}
2... e5 {[%clk 0:02:59.5]} 3. e4 {[%clk 0:02:59]} 3... d6 {[%clk 0:03:00.5]} 4.
Nc3 {[%clk 0:02:59.8]} 4... Be7 {[%clk 0:03:01.4]} 5. Bb5+ {[%clk 0:02:48.5]}
5... Nd7 {[%clk 0:03:01.4]} 6. a4 {[%clk 0:02:47.6]} 6... Nf6 {[%clk 0:03:01.5]}
7. Nf3 {[%clk 0:02:38]} 7... O-O {[%clk 0:03:01.7]} 8. O-O {[%clk 0:02:37.8]}
8... Kh8 {[%clk 0:03:02.3]} 9. h3 {[%clk 0:02:27.9]} 9... Ng8 {[%clk 0:03:00.7]}
10. Bd3 {[%clk 0:02:18.1]} 10... a6 {[%clk 0:02:52.6]} 11. Nd2 {[%clk
0:02:12.2]} 11... Rb8 {[%clk 0:02:53]} 12. Nc4 {[%clk 0:02:08.9]} 12... b5
{[%clk 0:02:52.7]} 13. axb5 {[%clk 0:02:10.8]} 13... axb5 {[%clk 0:02:54.3]} 14.
Na5 {[%clk 0:02:12.3]} 14... c4 {[%clk 0:02:50.7]} 15. Nc6 {[%clk 0:02:13.3]}
15... cxd3 {[%clk 0:02:49.4]} 16. Nxd8 {[%clk 0:02:13.3]} 16... dxc2 {[%clk
0:02:49.1]} 17. Nxf7+ {[%clk 0:02:02.6]} 17... Rxf7 {[%clk 0:02:51]} 18. Qxc2
{[%clk 0:02:04.5]} 18... Nc5 {[%clk 0:02:43.7]} 19. Be3 {[%clk 0:02:03.7]} 19...
b4 {[%clk 0:02:39.8]} 20. Ne2 {[%clk 0:02:02.2]} 20... Nf6 {[%clk 0:02:37.6]}
21. Ng3 {[%clk 0:01:57.8]} 21... Bf8 {[%clk 0:02:19.3]} 22. Rfd1 {[%clk
0:01:58.4]} 22... b3 {[%clk 0:02:18.3]} 23. Qc4 {[%clk 0:01:57.3]} 23... Bd7
{[%clk 0:02:09.2]} 24. Bxc5 {[%clk 0:01:55]} 24... dxc5 {[%clk 0:02:11.1]} 25.
d6 {[%clk 0:01:55.9]} 25... Kg8 {[%clk 0:02:06.1]} 26. Ra7 {[%clk 0:01:54.7]}
26... Rb4 {[%clk 0:02:05.2]} 27. Qxc5 {[%clk 0:01:52.8]} 27... Rb5 {[%clk
0:01:16.9]} 28. Qc4 {[%clk 0:01:50.9]} 28... g6 {[%clk 0:01:15.6]} 29. Rxd7
{[%clk 0:01:51.3]} 29... Nxd7 {[%clk 0:01:15.8]} 30. Qxb5 {[%clk 0:01:52.4]} 1-0

[Event "*** Titled Tuesday Blitz"]
[Site "Chess.com"]
[Date "2019.10.01"]
[Round "3"]
[White "tteshan"]
[Black "JozefKneht"]
[Result "1-0"]
[WhiteElo "2260"]
[BlackElo "2478"]
[TimeControl "180+2"]
[EndTime "13:34:34 PDT"]
[Termination "tteshan won by resignation"]

1. e4 {[%clk 0:03:01.9]} 1... e5 {[%clk 0:02:59.7]} 2. Nf3 {[%clk 0:03:03.1]}
2... Nc6 {[%clk 0:03:01]} 3. d4 {[%clk 0:02:59.7]} 3... exd4 {[%clk 0:03:00.8]}
4. Nxd4 {[%clk 0:03:01.6]} 4... Bc5 {[%clk 0:03:01.2]} 5. Nb3 {[%clk 0:03:02]}
5... Bb6 {[%clk 0:03:01]} 6. Nc3 {[%clk 0:03:03.6]} 6... Nf6 {[%clk 0:03:01.1]}
7. Qe2 {[%clk 0:03:04.9]} 7... a5 {[%clk 0:03:00.2]} 8. a4 {[%clk 0:03:02.6]}
8... d6 {[%clk 0:02:54.1]} 9. Be3 {[%clk 0:03:04]} 9... Bxe3 {[%clk 0:02:51.9]}
10. Qxe3 {[%clk 0:03:05.1]} 10... O-O {[%clk 0:02:49]} 11. O-O-O {[%clk
0:03:04.9]} 11... Re8 {[%clk 0:02:50.2]} 12. f3 {[%clk 0:02:53.4]} 12... Be6
{[%clk 0:02:41.1]} 13. Nd4 {[%clk 0:02:52.2]} 13... Nxd4 {[%clk 0:02:41.9]} 14.
Qxd4 {[%clk 0:02:53.2]} 14... Nd7 {[%clk 0:02:37.9]} 15. f4 {[%clk 0:02:43.9]}
15... Qf6 {[%clk 0:02:32.9]} 16. f5 {[%clk 0:02:37.7]} 16... Bxf5 {[%clk
0:02:27.6]} 17. exf5 {[%clk 0:02:39.6]} 17... Qxf5 {[%clk 0:02:28.3]} 18. Bd3
{[%clk 0:02:36.2]} 18... Qg5+ {[%clk 0:02:26.2]} 19. Kb1 {[%clk 0:02:37]} 19...
Nc5 {[%clk 0:02:26.7]} 20. h4 {[%clk 0:02:33.3]} 20... Qg3 {[%clk 0:02:20.1]}
21. Rh3 {[%clk 0:02:22.5]} 21... Qxg2 {[%clk 0:02:11.9]} 22. Rhh1 {[%clk
0:02:07.8]} 22... Re5 {[%clk 0:02:01.5]} 23. Rdg1 {[%clk 0:01:51.5]} 23... Qc6
{[%clk 0:02:01.4]} 24. Bb5 {[%clk 0:01:50.8]} 24... Ne6 {[%clk 0:01:52.3]} 25.
Qxe5 {[%clk 0:01:45.6]} 25... dxe5 {[%clk 0:01:54.1]} 26. Bxc6 {[%clk
0:01:46.2]} 26... bxc6 {[%clk 0:01:56]} 27. Re1 {[%clk 0:01:45.9]} 27... f6
{[%clk 0:01:56.3]} 28. Rhg1 {[%clk 0:01:46]} 28... Kf7 {[%clk 0:01:54.3]} 29. h5
{[%clk 0:01:45.7]} 29... Rb8 {[%clk 0:01:54.4]} 30. Ne4 {[%clk 0:01:45.4]} 30...
Rb4 {[%clk 0:01:52]} 31. b3 {[%clk 0:01:45.6]} 31... c5 {[%clk 0:01:50]} 32. Nd2
{[%clk 0:01:43.8]} 32... Rh4 {[%clk 0:01:48.1]} 33. Rh1 {[%clk 0:01:43.3]} 33...
Rg4 {[%clk 0:01:47.2]} 34. Nc4 {[%clk 0:01:43.3]} 34... e4 {[%clk 0:01:48.2]}
35. Nxa5 {[%clk 0:01:41.7]} 35... f5 {[%clk 0:01:49]} 36. Nc4 {[%clk 0:01:41.9]}
36... g5 {[%clk 0:01:43.9]} 37. Ne5+ {[%clk 0:01:41]} 1-0

[Event "*** Titled Tuesday Blitz"]
[Site "Chess.com"]
[Date "2019.10.01"]
[Round "3"]
[White "Sashadav97"]
[Black "JussupowFan"]
[Result "1-0"]
[WhiteElo "2533"]
[BlackElo "2208"]
[TimeControl "180+2"]
[EndTime "13:34:35 PDT"]
[Termination "Sashadav97 won by resignation"]

1. d4 {[%clk 0:03:01.9]} 1... Nf6 {[%clk 0:03:00]} 2. c4 {[%clk 0:03:02.6]} 2...
e6 {[%clk 0:03:01.3]} 3. Nc3 {[%clk 0:03:03.2]} 3... Bb4 {[%clk 0:03:02.3]} 4.
Qc2 {[%clk 0:03:04.8]} 4... d5 {[%clk 0:03:02.8]} 5. Nf3 {[%clk 0:03:04.2]} 5...
dxc4 {[%clk 0:03:03.1]} 6. e3 {[%clk 0:03:02]} 6... b5 {[%clk 0:03:03.7]} 7. a4
{[%clk 0:02:59.6]} 7... c6 {[%clk 0:03:03.3]} 8. Bd2 {[%clk 0:02:59.4]} 8... Bb7
{[%clk 0:02:54.3]} 9. axb5 {[%clk 0:02:54.6]} 9... Bxc3 {[%clk 0:02:55.3]} 10.
Bxc3 {[%clk 0:02:51]} 10... cxb5 {[%clk 0:02:47.4]} 11. b3 {[%clk 0:02:37.1]}
11... a5 {[%clk 0:02:18.4]} 12. bxc4 {[%clk 0:02:36.5]} 12... b4 {[%clk
0:02:19.6]} 13. Bb2 {[%clk 0:02:36.4]} 13... O-O {[%clk 0:02:19.8]} 14. Bd3
{[%clk 0:02:35.7]} 14... Nbd7 {[%clk 0:02:20.7]} 15. O-O {[%clk 0:02:34.7]}
15... Ra7 {[%clk 0:02:06.1]} 16. e4 {[%clk 0:02:15.2]} 16... Qa8 {[%clk
0:02:05]} 17. e5 {[%clk 0:02:15.4]} 17... Ng4 {[%clk 0:01:30.1]} 18. Bxh7+
{[%clk 0:02:12.8]} 18... Kh8 {[%clk 0:01:30.2]} 19. d5 {[%clk 0:02:14.3]} 19...
exd5 {[%clk 0:01:24.1]} 20. Bf5 {[%clk 0:02:14]} 20... dxc4 {[%clk 0:01:10.8]}
21. Bxg4 {[%clk 0:02:13.2]} 21... c3 {[%clk 0:00:46.1]} 22. Ng5 {[%clk
0:01:58.7]} 22... g6 {[%clk 0:00:41.2]} 23. Bxc3 {[%clk 0:01:58.8]} 23... Qc8
{[%clk 0:00:26.1]} 24. Bxd7 {[%clk 0:01:55.3]} 24... Qxd7 {[%clk 0:00:27.2]} 1-0

[Event "*** Titled Tuesday Blitz"]
[Site "Chess.com"]
[Date "2019.10.01"]
[Round "3"]
[White "Faustregel"]
[Black "Macron20hTF1"]
[Result "1-0"]
[WhiteElo "2568"]
[BlackElo "2268"]
[TimeControl "180+2"]
[EndTime "13:34:46 PDT"]
[Termination "Faustregel won by resignation"]

1. e4 {[%clk 0:03:01.9]} 1... c5 {[%clk 0:03:00.9]} 2. Nf3 {[%clk 0:03:02.5]}
2... d6 {[%clk 0:03:02.3]} 3. d4 {[%clk 0:03:03.1]} 3... cxd4 {[%clk 0:03:04.2]}
4. Nxd4 {[%clk 0:03:04.6]} 4... Nf6 {[%clk 0:03:05.8]} 5. Nc3 {[%clk 0:03:06]}
5... a6 {[%clk 0:03:07.4]} 6. Bg5 {[%clk 0:03:05.8]} 6... Nbd7 {[%clk
0:03:07.6]} 7. f4 {[%clk 0:03:04.9]} 7... Qc7 {[%clk 0:03:08]} 8. Qf3 {[%clk
0:03:05.2]} 8... h6 {[%clk 0:03:09.1]} 9. Bxf6 {[%clk 0:03:06.1]} 9... Nxf6
{[%clk 0:03:09.6]} 10. f5 {[%clk 0:03:04.5]} 10... e5 {[%clk 0:02:58.4]} 11.
fxe6 {[%clk 0:03:00.1]} 11... fxe6 {[%clk 0:02:59.6]} 12. O-O-O {[%clk
0:02:55.9]} 12... Be7 {[%clk 0:02:59.1]} 13. Qh3 {[%clk 0:02:37.7]} 13... e5
{[%clk 0:02:10.8]} 14. Ne6 {[%clk 0:02:36.2]} 14... Bxe6 {[%clk 0:02:02.6]} 15.
Qxe6 {[%clk 0:02:35.2]} 15... Qd7 {[%clk 0:02:01.8]} 16. Qb3 {[%clk 0:02:25.1]}
16... b5 {[%clk 0:02:02.9]} 17. Be2 {[%clk 0:01:48.7]} 17... Rb8 {[%clk
0:01:55.7]} 18. a3 {[%clk 0:01:46.6]} 18... Bd8 {[%clk 0:01:36.8]} 19. Rhf1
{[%clk 0:01:32.7]} 19... Bb6 {[%clk 0:01:37.8]} 20. Kb1 {[%clk 0:01:24.6]} 20...
Bd4 {[%clk 0:01:36.6]} 21. Nd5 {[%clk 0:01:22.1]} 21... Qf7 {[%clk 0:00:53.5]}
22. Rxf6 {[%clk 0:01:05.5]} 1-0

[Event "*** Titled Tuesday Blitz"]
[Site "Chess.com"]
[Date "2019.10.01"]
[Round "3"]
[White "Nbk90"]
[Black "BlueWizzard"]
[Result "0-1"]
[WhiteElo "2492"]
[BlackElo "2828"]
[TimeControl "180+2"]
[EndTime "13:34:55 PDT"]
[Termination "BlueWizzard won by resignation"]

1. d4 {[%clk 0:02:59.7]} 1... Nf6 {[%clk 0:03:00.8]} 2. c4 {[%clk 0:02:59.7]}
2... c5 {[%clk 0:03:02.7]} 3. d5 {[%clk 0:02:59.2]} 3... g6 {[%clk 0:03:04.4]}
4. Nc3 {[%clk 0:02:59]} 4... Bg7 {[%clk 0:03:06]} 5. e4 {[%clk 0:02:59.5]} 5...
O-O {[%clk 0:03:06.9]} 6. h3 {[%clk 0:02:59.4]} 6... Na6 {[%clk 0:03:07.1]} 7.
Nf3 {[%clk 0:02:59.7]} 7... Nc7 {[%clk 0:03:07.1]} 8. e5 {[%clk 0:02:58.6]} 8...
Nfe8 {[%clk 0:03:08]} 9. Bf4 {[%clk 0:02:59]} 9... d6 {[%clk 0:03:09]} 10. Qd2
{[%clk 0:02:58]} 10... b5 {[%clk 0:03:05.3]} 11. Be2 {[%clk 0:02:56]} 11... bxc4
{[%clk 0:02:57.7]} 12. O-O {[%clk 0:02:53.6]} 12... Rb8 {[%clk 0:02:52.2]} 13.
Bxc4 {[%clk 0:02:46.7]} 13... Ba6 {[%clk 0:02:49]} 14. Bxa6 {[%clk 0:02:44]}
14... Nxa6 {[%clk 0:02:50.2]} 15. Rfe1 {[%clk 0:02:44.3]} 15... Nac7 {[%clk
0:02:44.7]} 16. Rad1 {[%clk 0:02:42.6]} 16... Rb4 {[%clk 0:02:40.7]} 17. b3
{[%clk 0:02:38.9]} 17... Nb5 {[%clk 0:02:35.3]} 18. Nxb5 {[%clk 0:02:37.1]}
18... Rxb5 {[%clk 0:02:37.2]} 19. Bh6 {[%clk 0:02:20.3]} 19... Qa5 {[%clk
0:02:25.5]} 20. exd6 {[%clk 0:02:08.1]} 20... Qxd2 {[%clk 0:02:18.8]} 21. Bxd2
{[%clk 0:02:07.1]} 21... exd6 {[%clk 0:02:19]} 22. Re7 {[%clk 0:02:05.5]} 22...
a5 {[%clk 0:02:14.1]} 23. Ra7 {[%clk 0:02:05.3]} 23... Nf6 {[%clk 0:02:06.6]}
24. Bxa5 {[%clk 0:02:05]} 24... Re8 {[%clk 0:02:03.5]} 25. Bc3 {[%clk
0:02:02.7]} 25... Ne4 {[%clk 0:01:59.7]} 26. Bxg7 {[%clk 0:02:02.3]} 26... Kxg7
{[%clk 0:02:01.6]} 27. Re1 {[%clk 0:01:56.9]} 27... Rbb8 {[%clk 0:02:02.2]} 28.
Re3 {[%clk 0:01:41.3]} 28... g5 {[%clk 0:01:53.2]} 29. g4 {[%clk 0:01:35.7]}
29... Kg6 {[%clk 0:01:49]} 30. Kg2 {[%clk 0:01:35.1]} 30... Nf6 {[%clk
0:01:42.8]} 31. Rd3 {[%clk 0:01:30]} 31... h5 {[%clk 0:01:39.7]} 32. gxh5+
{[%clk 0:01:29.1]} 32... Nxh5 {[%clk 0:01:40.6]} 33. Ra6 {[%clk 0:01:29.6]}
33... Nf4+ {[%clk 0:01:41]} 34. Kg3 {[%clk 0:01:30]} 34... Nxd3 {[%clk
0:01:39.6]} 35. Rxd6+ {[%clk 0:01:31.2]} 35... Kf5 {[%clk 0:01:39.7]} 0-1

[Event "*** Titled Tuesday Blitz"]
[Site "Chess.com"]
[Date "2019.10.01"]
[Round "3"]
[White "ShahMatKanal"]
[Black "HanSchut"]
[Result "0-1"]
[WhiteElo "2438"]
[BlackElo "2214"]
[TimeControl "180+2"]
[EndTime "13:34:55 PDT"]
[Termination "HanSchut won by resignation"]

1. e4 {[%clk 0:03:01.9]} 1... c5 {[%clk 0:02:59.8]} 2. Nf3 {[%clk 0:02:58.5]}
2... d6 {[%clk 0:03:00.7]} 3. Bb5+ {[%clk 0:02:57.6]} 3... Nd7 {[%clk
0:03:01.6]} 4. c4 {[%clk 0:02:57]} 4... Nf6 {[%clk 0:02:48.8]} 5. Nc3 {[%clk
0:02:57.4]} 5... e6 {[%clk 0:02:49.5]} 6. O-O {[%clk 0:02:58.1]} 6... Be7 {[%clk
0:02:50.6]} 7. d4 {[%clk 0:02:54.6]} 7... O-O {[%clk 0:02:40.2]} 8. d5 {[%clk
0:02:48.4]} 8... e5 {[%clk 0:02:31.3]} 9. Ba4 {[%clk 0:02:45.7]} 9... Nh5 {[%clk
0:02:19]} 10. Bxd7 {[%clk 0:02:33.9]} 10... Bxd7 {[%clk 0:02:10.8]} 11. Nxe5
{[%clk 0:02:35]} 11... dxe5 {[%clk 0:01:58.9]} 12. Qxh5 {[%clk 0:02:35.2]} 12...
f5 {[%clk 0:01:55.5]} 13. exf5 {[%clk 0:02:32.7]} 13... Rxf5 {[%clk 0:01:55.6]}
14. Qe2 {[%clk 0:02:32.7]} 14... Qe8 {[%clk 0:01:30.2]} 15. Ne4 {[%clk
0:02:32.9]} 15... Qg6 {[%clk 0:01:27.8]} 16. f3 {[%clk 0:02:34.1]} 16... Rf7
{[%clk 0:01:04.9]} 17. Be3 {[%clk 0:02:33.8]} 17... b6 {[%clk 0:01:05.4]} 18. a3
{[%clk 0:02:26.7]} 18... Raf8 {[%clk 0:01:04.4]} 19. b4 {[%clk 0:02:26]} 19...
cxb4 {[%clk 0:00:52.7]} 20. axb4 {[%clk 0:02:26.8]} 20... Bf5 {[%clk 0:00:48.1]}
21. Bd2 {[%clk 0:02:10.5]} 21... a5 {[%clk 0:00:24.6]} 22. bxa5 {[%clk
0:02:03.5]} 22... Bxe4 {[%clk 0:00:24.9]} 23. Qxe4 {[%clk 0:02:03.3]} 23... Qxe4
{[%clk 0:00:23.3]} 24. fxe4 {[%clk 0:02:00.2]} 24... Bc5+ {[%clk 0:00:25.1]} 25.
Rf2 {[%clk 0:01:55.3]} 25... Rxf2 {[%clk 0:00:26]} 0-1

[Event "*** Titled Tuesday Blitz"]
[Site "Chess.com"]
[Date "2019.10.01"]
[Round "3"]
[White "alishersuleymenov"]
[Black "Micki-taryan"]
[Result "0-1"]
[WhiteElo "2700"]
[BlackElo "2955"]
[TimeControl "180+2"]
[EndTime "13:34:58 PDT"]
[Termination "Micki-taryan won by resignation"]

1. d4 {[%clk 0:03:01.9]} 1... Nf6 {[%clk 0:03:01]} 2. Nf3 {[%clk 0:03:02.8]}
2... e6 {[%clk 0:03:01.8]} 3. Bf4 {[%clk 0:03:04]} 3... b6 {[%clk 0:03:02.9]} 4.
e3 {[%clk 0:03:05.2]} 4... Bb7 {[%clk 0:03:03.4]} 5. Nbd2 {[%clk 0:03:05.8]}
5... Bd6 {[%clk 0:03:04.7]} 6. Bg3 {[%clk 0:03:06.6]} 6... Nc6 {[%clk
0:03:04.1]} 7. c3 {[%clk 0:03:03.8]} 7... Ne7 {[%clk 0:03:02.3]} 8. Bd3 {[%clk
0:02:59]} 8... O-O {[%clk 0:03:02.9]} 9. e4 {[%clk 0:02:54.4]} 9... Bxg3 {[%clk
0:02:55]} 10. hxg3 {[%clk 0:02:56.3]} 10... d6 {[%clk 0:02:55.7]} 11. Qe2 {[%clk
0:02:54]} 11... Ng6 {[%clk 0:02:46.5]} 12. e5 {[%clk 0:02:15.8]} 12... dxe5
{[%clk 0:02:46.6]} 13. dxe5 {[%clk 0:02:17.7]} 13... Nd7 {[%clk 0:02:47.4]} 14.
Qe3 {[%clk 0:01:33.8]} 14... Qe7 {[%clk 0:02:41.4]} 15. Bxg6 {[%clk 0:00:55.1]}
15... fxg6 {[%clk 0:02:40.7]} 16. O-O-O {[%clk 0:00:45]} 16... Rad8 {[%clk
0:02:39.7]} 17. Ne4 {[%clk 0:00:31.1]} 17... h6 {[%clk 0:02:40.3]} 18. Rd4
{[%clk 0:00:22.1]} 18... Bd5 {[%clk 0:02:32.4]} 19. a3 {[%clk 0:00:21.6]} 19...
Nc5 {[%clk 0:02:30.6]} 20. Nxc5 {[%clk 0:00:20.7]} 20... bxc5 {[%clk 0:02:32.5]}
21. Rd2 {[%clk 0:00:17.8]} 21... Rb8 {[%clk 0:02:32]} 22. Nh4 {[%clk 0:00:16.7]}
22... Qf7 {[%clk 0:02:32.1]} 23. f4 {[%clk 0:00:16.5]} 23... Rb3 {[%clk
0:02:30.7]} 24. Qxc5 {[%clk 0:00:17]} 24... Rfb8 {[%clk 0:02:31.1]} 25. Nf3
{[%clk 0:00:10]} 25... R8b5 {[%clk 0:02:27.6]} 26. Qxa7 {[%clk 0:00:10.7]} 26...
Qf5 {[%clk 0:02:26.5]} 27. Nd4 {[%clk 0:00:11.7]} 27... Rxc3+ {[%clk 0:02:27.6]}
28. Kd1 {[%clk 0:00:10.9]} 28... Qb1+ {[%clk 0:02:28.4]} 29. Ke2 {[%clk
0:00:12.1]} 29... Qxh1 {[%clk 0:02:27.9]} 30. bxc3 {[%clk 0:00:06.6]} 30...
Qxg2+ {[%clk 0:02:28.6]} 31. Kd1 {[%clk 0:00:08]} 31... Qf1+ {[%clk 0:02:29.1]}
0-1

[Event "*** Titled Tuesday Blitz"]
[Site "Chess.com"]
[Date "2019.10.01"]
[Round "3"]
[White "LazarusChess92"]
[Black "comsac"]
[Result "0-1"]
[WhiteElo "2530"]
[BlackElo "2281"]
[TimeControl "180+2"]
[EndTime "13:35:24 PDT"]
[Termination "comsac won by resignation"]

1. d4 {[%clk 0:03:01.9]} 1... d5 {[%clk 0:03:01.1]} 2. Nf3 {[%clk 0:03:02.4]}
2... e6 {[%clk 0:03:02.6]} 3. c4 {[%clk 0:03:02.6]} 3... Nf6 {[%clk 0:03:04]} 4.
g3 {[%clk 0:03:02.3]} 4... Be7 {[%clk 0:03:05]} 5. Bg2 {[%clk 0:03:03.6]} 5...
O-O {[%clk 0:03:06]} 6. Nc3 {[%clk 0:03:04.9]} 6... b6 {[%clk 0:03:07.3]} 7.
cxd5 {[%clk 0:03:05.5]} 7... Nxd5 {[%clk 0:03:08]} 8. Nxd5 {[%clk 0:03:01.7]}
8... exd5 {[%clk 0:03:03.8]} 9. O-O {[%clk 0:03:02.1]} 9... Be6 {[%clk
0:02:55.6]} 10. Bf4 {[%clk 0:02:59.9]} 10... Nd7 {[%clk 0:02:54.1]} 11. Rc1
{[%clk 0:02:55.2]} 11... c5 {[%clk 0:02:50.5]} 12. Qa4 {[%clk 0:02:48]} 12...
Qc8 {[%clk 0:01:58.1]} 13. dxc5 {[%clk 0:02:14.6]} 13... bxc5 {[%clk 0:01:58.7]}
14. Ne5 {[%clk 0:02:10.5]} 14... Nxe5 {[%clk 0:01:52.1]} 15. Bxe5 {[%clk
0:02:12.4]} 15... Qb7 {[%clk 0:01:40.3]} 16. b3 {[%clk 0:02:06.1]} 16... a5
{[%clk 0:01:34.3]} 17. Rfd1 {[%clk 0:01:54.6]} 17... Rfd8 {[%clk 0:01:28.8]} 18.
Bc3 {[%clk 0:01:37.6]} 18... Qa6 {[%clk 0:00:59.7]} 19. e3 {[%clk 0:01:21.3]}
19... Bd7 {[%clk 0:00:30.5]} 20. Qf4 {[%clk 0:01:15.9]} 20... Bc6 {[%clk
0:00:31.7]} 21. Qg5 {[%clk 0:01:00.3]} 21... Bxg5 {[%clk 0:00:32.6]} 0-1

[Event "*** Titled Tuesday Blitz"]
[Site "Chess.com"]
[Date "2019.10.01"]
[Round "3"]
[White "TrenerChos"]
[Black "AndrewMcStone"]
[Result "1-0"]
[WhiteElo "2401"]
[BlackElo "2134"]
[TimeControl "180+2"]
[EndTime "13:35:26 PDT"]
[Termination "TrenerChos won on time"]

1. e4 {[%clk 0:02:57.7]} 1... Nc6 {[%clk 0:03:00.3]} 2. d4 {[%clk 0:02:58]} 2...
d5 {[%clk 0:03:01]} 3. e5 {[%clk 0:02:58.7]} 3... Bf5 {[%clk 0:03:01.5]} 4. c3
{[%clk 0:02:59.2]} 4... e6 {[%clk 0:03:02.7]} 5. f4 {[%clk 0:02:59.6]} 5... h5
{[%clk 0:02:59.3]} 6. Nf3 {[%clk 0:03:00.2]} 6... Nh6 {[%clk 0:02:51.3]} 7. Be2
{[%clk 0:03:00.1]} 7... Be7 {[%clk 0:02:45.3]} 8. O-O {[%clk 0:03:00]} 8... Qd7
{[%clk 0:02:40.6]} 9. b4 {[%clk 0:02:57.6]} 9... h4 {[%clk 0:02:04.3]} 10. h3
{[%clk 0:02:50.5]} 10... Be4 {[%clk 0:01:39.1]} 11. Nbd2 {[%clk 0:02:49.2]}
11... f5 {[%clk 0:01:34.6]} 12. a4 {[%clk 0:02:43.1]} 12... a5 {[%clk
0:01:11.2]} 13. b5 {[%clk 0:02:42.8]} 13... Na7 {[%clk 0:01:06.8]} 14. c4 {[%clk
0:02:43.5]} 14... c5 {[%clk 0:00:54.4]} 15. Bb2 {[%clk 0:02:35.7]} 15... O-O
{[%clk 0:00:44.8]} 16. Rc1 {[%clk 0:02:34.2]} 16... Nc8 {[%clk 0:00:43.2]} 17.
cxd5 {[%clk 0:02:31.2]} 17... cxd4 {[%clk 0:00:14.4]} 18. dxe6 {[%clk
0:02:25.4]} 18... Qd8 {[%clk 0:00:06.7]} 19. Nxd4 {[%clk 0:02:23.4]} 19... Nb6
{[%clk 0:00:05.4]} 20. Nxe4 {[%clk 0:02:23.1]} 20... fxe4 {[%clk 0:00:06.5]} 21.
f5 {[%clk 0:02:23]} 21... Rc8 {[%clk 0:00:03.7]} 22. Qd2 {[%clk 0:02:15.5]}
22... Rxc1 {[%clk 0:00:02.1]} 23. Bxc1 {[%clk 0:02:07.5]} 23... Nxa4 {[%clk
0:00:04]} 24. f6 {[%clk 0:02:05.9]} 24... Bc5 {[%clk 0:00:04.8]} 25. e7 {[%clk
0:02:00.1]} 25... Qxd4+ {[%clk 0:00:03]} 26. Qxd4 {[%clk 0:01:58.5]} 26... Bxd4+
{[%clk 0:00:04.9]} 27. Kh1 {[%clk 0:01:57.9]} 27... Re8 {[%clk 0:00:06.3]} 28.
Bxh6 {[%clk 0:01:56.9]} 28... gxh6 {[%clk 0:00:06.4]} 29. f7+ {[%clk 0:01:56.3]}
1-0